[Event "EYTCC U12 Girls 2019"]
[Site "Pardubice"]
[Date "2019.07.14"]
[Round "4.18"]
[White "Janouskova, Adela"]
[Black "Pert, Nina"]
[Result "0-1"]
[ECO "C01"]
[WhiteElo "1200"]
[BlackElo "1452"]
[Annotator "NA"]
[PlyCount "108"]
[EventDate "2019.07.11"]
[EventType "swiss"]
[EventCountry "CZE"]
[SourceTitle "playchess.com"]
[Source "ChessBase"]
[SourceQuality "1"]
[WhiteTeam "Czech Republic"]
[BlackTeam "England"]
[WhiteTeamCountry "CZE"]
[BlackTeamCountry "ENG"]
[TimeControl "40/5400+30:1800+30"]

1. e4 {[%emt 0:00:00]} e6 {[%emt 0:00:00]} 2. d4 {[%emt 0:00:05]} d5 {[%emt 0:00:09]} 3. exd5 {[%emt 0:00:44]} exd5 {[%emt 0:00:29]} 4. Nf3 {[%emt 0:00:43]} Nc6 {[%emt 0:01:42]} 5. Be2 {[%emt 0:00:47]} Bd6 {[%emt 0:03:53]} 6. Nc3 {[%emt 0:00:37]} Nge7 {[%emt 0:00:34]} 7. O-O {[%emt 0:00:19]} O-O {[%emt 0:00:41]} 8. Be3 {[%emt 0:00:55]} Be6 {[%emt 0:02:11]} 9. Qd2 {[%emt 0:01:12]} Nf5 {[%emt 0:02:14]} 10. Bf4 {[%emt 0:02:51]} Bxf4 {[%emt 0:07:30]} 11. Qxf4 {[%emt 0:00:10]} a6 {[%emt 0:02:00]} 12. a3 {[%emt 0:03:37]} Nce7 {[%emt 0:01:49]} 13. Ne5 {[%emt 0:03:37]} f6 {[%emt 0:01:04]} 14. Nf3 {[%emt 0:00:45]} Ng6 {[%emt 0:00:50]} 15. Qd2 {[%emt 0:00:25]} Qd7 {[%emt 0:06:23]} 16. Rfe1 {[%emt 0:02:06]} Rae8 {[%emt 0:02:23]} 17. Rad1 {[%emt 0:00:45]} Nfh4 {[%emt 0:04:41]} 18. Nxh4 {[%emt 0:03:00]} Nxh4 {[%emt 0:00:12]} 19. Qf4 {[%emt 0:05:36]} Ng6 {[%emt 0:03:23]} 20. Qg3 {[%emt 0:01:31]} Bf5 {[%emt 0:01:04]} 21. Bd3 {[%emt 0:02:03]} Bxd3 {[%emt 0:00:33]} 22. Qxd3 {[%emt 0:03:06]} f5 {[%emt 0:00:33]} 23. Qf3 {[%emt 0:01:55]} c6 {[%emt 0:00:40]} 24. Na4 {[%emt 0:00:51]} f4 {[%emt 0:00:51]} 25. Nc5 {[%emt 0:01:22]} Qf5 {[%emt 0:07:13]} 26. Qd3 {[%emt 0:06:37]} Qc8 {[%emt 0:10:19]} 27. Qb3 {[%emt 0:04:35]} Rxe1+ {[%emt 0:03:08]} 28. Rxe1 {[%emt 0:00:08]} f3 {[%emt 0:00:37]} 29. gxf3 {[%emt 0:05:40]} Nh4 {[%emt 0:03:50]} 30. f4 {[%emt 0:02:55]} Qg4+ {[%emt 0:00:18]} 31. Qg3 {[%emt 0:00:31]} Qxg3+ {[%emt 0:00:14]} 32. fxg3 {[%emt 0:00:48]} Nf3+ {[%emt 0:00:11]} 33. Kf2 {[%emt 0:00:25]} Nxe1 {[%emt 0:00:07]} 34. Kxe1 {[%emt 0:00:03]} Re8+ {[%emt 0:00:19]} 35. Kf2 {[%emt 0:00:15]} Re7 {[%emt 0:00:13]} 36. Nd3 {[%emt 0:00:37]} Kf7 {[%emt 0:00:44]} 37. Ne5+ {[%emt 0:00:51]} Kf6 {[%emt 0:00:10]} 38. Kf3 {[%emt 0:00:16]} g5 {[%emt 0:02:10]} 39. fxg5+ {[%emt 0:00:51]} Kxg5 {[%emt 0:01:17]} 40. Kg2 {[%emt 0:02:28]} Kf5 {[%emt 0:00:38]} 41. Kf3 {[%emt 0:30:05]} c5 {[%emt 0:32:02]} 42. c3 {[%emt 0:00:37]} cxd4 {[%emt 0:00:15]} 43. cxd4 {[%emt 0:00:05]} Rc7 {[%emt 0:00:14]} 44. Nd3 {[%emt 0:01:03]} Rc2 {[%emt 0:01:21]} 45. Nb4 {[%emt 0:00:19]} Rxh2 {[%emt 0:01:25]} 46. Nxd5 {[%emt 0:00:13]} Rxb2 {[%emt 0:00:18]} 47. Ne3+ {[%emt 0:00:13]} Ke6 {[%emt 0:00:37]} 48. d5+ {[%emt 0:01:02]} Kd7 {[%emt 0:00:09]} 49. Ke4 {[%emt 0:02:52]} Rb3 {[%emt 0:01:15]} 50. Nf5 {[%emt 0:01:11]} Rxa3 {[%emt 0:00:24]} 51. Ke5 {[%emt 0:00:18]} Rf3 {[%emt 0:00:57]} 52. Ke4 {[%emt 0:01:04]} Rxf5 {[%emt 0:00:12]} 53. Kxf5 {[%emt 0:00:07]} a5 {[%emt 0:00:04]} 54. Kf6 {[%emt 0:00:25]} a4 {[%emt 0:00:05]} 0-1

[Event "EYTCC U12 Girls 2019"]
[Site "Pardubice"]
[Date "2019.07.14"]
[Round "4.19"]
[White "Veverkova, Dorota"]
[Black "Buyuk, Ecrin Efsa"]
[Result "0-1"]
[ECO "B18"]
[WhiteElo "1348"]
[BlackElo "1592"]
[Annotator "NA"]
[PlyCount "74"]
[EventDate "2019.07.11"]
[EventType "swiss"]
[EventCountry "CZE"]
[SourceTitle "playchess.com"]
[Source "ChessBase"]
[SourceQuality "1"]
[WhiteTeam "Czech Republic"]
[BlackTeam "Turkey"]
[WhiteTeamCountry "CZE"]
[BlackTeamCountry "TUR"]
[TimeControl "40/5400+30:1800+30"]

1. e4 {[%emt 0:00:00]} c6 {[%emt 0:00:00]} 2. d4 {[%emt 0:00:00]} d5 {[%emt 0:00:04]} 3. Nc3 {[%emt 0:00:00]} dxe4 {[%emt 0:00:15]} 4. Nxe4 {[%emt 0:00:05]} Bf5 {[%emt 0:00:05]} 5. Ng3 {[%emt 0:00:12]} Bg6 {[%emt 0:00:08]} 6. N1e2 {[%emt 0:00:10]} e6 {[%emt 0:04:08]} 7. Nf4 {[%emt 0:00:25]} Bd6 {[%emt 0:01:53]} 8. Bc4 {[%emt 0:04:55]} Nf6 {[%emt 0:09:25]} 9. O-O {[%emt 0:01:02]} Qc7 {[%emt 0:33:16]} 10. Nxg6 {[%emt 0:02:23]} hxg6 {[%emt 0:00:10]} 11. Qf3 {[%emt 0:01:47]} Nh5 {[%emt 0:14:13]} 12. Re1 {[%emt 0:07:01]} Qe7 {[%emt 0:04:31]} 13. d5 {[%emt 0:03:07]} Qh4 {[%emt 0:06:44]} 14. dxe6 {[%emt 0:03:29]} f5 {[%emt 0:00:50]} 15. Bd2 {[%emt 0:05:03]} Qxc4 {[%emt 0:04:08]} 16. Bg5 {[%emt 0:03:21]} Qg4 {[%emt 0:03:11]} 17. Qxg4 {[%emt 0:01:10]} fxg4 {[%emt 0:00:04]} 18. Rad1 {[%emt 0:01:24]} Be7 {[%emt 0:00:19]} 19. Bxe7 {[%emt 0:01:45]} Kxe7 {[%emt 0:00:05]} 20. Rd4 {[%emt 0:01:01]} Nxg3 {[%emt 0:00:44]} 21. hxg3 {[%emt 0:00:17]} Rh6 {[%emt 0:00:55]} 22. Rxg4 {[%emt 0:01:20]} Na6 {[%emt 0:00:08]} 23. Rf4 {[%emt 0:01:52]} Rf8 {[%emt 0:00:46]} 24. Rxf8 {[%emt 0:02:13]} Kxf8 {[%emt 0:00:06]} 25. e7+ {[%emt 0:00:41]} Ke8 {[%emt 0:00:04]} 26. a3 {[%emt 0:00:31]} Nc7 {[%emt 0:00:05]} 27. c4 {[%emt 0:00:51]} Kf7 {[%emt 0:00:52]} 28. f4 {[%emt 0:00:54]} Rh8 {[%emt 0:00:04]} 29. g4 {[%emt 0:00:56]} Re8 {[%emt 0:00:23]} 30. f5 {[%emt 0:01:53]} gxf5 {[%emt 0:00:09]} 31. gxf5 {[%emt 0:00:11]} Rxe7 {[%emt 0:00:05]} 32. Rd1 {[%emt 0:00:41]} Ke8 {[%emt 0:00:19]} 33. Rd4 {[%emt 0:00:42]} Re2 {[%emt 0:00:41]} 34. b4 {[%emt 0:00:51]} Re5 {[%emt 0:00:33]} 35. g4 {[%emt 0:00:25]} Re3 {[%emt 0:00:04]} 36. a4 {[%emt 0:00:16]} Ra3 {[%emt 0:00:36]} 37. a5 {[%emt 0:00:17]} Rb3 0-1

[Event "EYTCC U12 Girls 2019"]
[Site "Pardubice"]
[Date "2019.07.14"]
[Round "4.20"]
[White "Alagoz, Zumra Meryem"]
[Black "Zadrapova, Amalie"]
[Result "1/2-1/2"]
[ECO "B23"]
[WhiteElo "1310"]
[BlackElo "1248"]
[Annotator "NA"]
[PlyCount "64"]
[EventDate "2019.07.11"]
[EventType "swiss"]
[EventCountry "CZE"]
[SourceTitle "playchess.com"]
[Source "ChessBase"]
[SourceQuality "1"]
[WhiteTeam "Turkey"]
[BlackTeam "Czech Republic"]
[WhiteTeamCountry "TUR"]
[BlackTeamCountry "CZE"]
[TimeControl "40/5400+30:1800+30"]

1. e4 {[%emt 0:00:00]} c5 {[%emt 0:00:00]} 2. Nc3 {[%emt 0:00:00]} d6 {[%emt 0:00:02]} 3. g3 {[%emt 0:03:22]} Nf6 {[%emt 0:01:26]} 4. Bg2 {[%emt 0:02:31]} e6 {[%emt 0:02:02]} 5. d3 {[%emt 0:01:24]} Be7 {[%emt 0:00:45]} 6. Nge2 {[%emt 0:03:01]} O-O {[%emt 0:02:31]} 7. O-O {[%emt 0:07:51]} d5 {[%emt 0:06:02]} 8. exd5 {[%emt 0:03:02]} exd5 {[%emt 0:00:47]} 9. Nf4 {[%emt 0:07:37]} d4 {[%emt 0:02:18]} 10. Ncd5 {[%emt 0:01:31]} Nxd5 {[%emt 0:07:02]} 11. Nxd5 {[%emt 0:00:30]} Re8 {[%emt 0:03:01]} 12. Bf4 {[%emt 0:08:12]} Bd6 {[%emt 0:07:15]} 13. Bxd6 {[%emt 0:02:56]} Qxd6 {[%emt 0:00:10]} 14. Re1 {[%emt 0:02:40]} Be6 {[%emt 0:05:58]} 15. Nf4 {[%emt 0:01:03]} Nc6 {[%emt 0:01:07]} 16. Qd2 {[%emt 0:01:40]} Bd7 {[%emt 0:03:35]} 17. Rxe8+ {[%emt 0:13:41]} Rxe8 {[%emt 0:00:12]} 18. Re1 {[%emt 0:02:40]} Rxe1+ {[%emt 0:06:31]} 19. Qxe1 {[%emt 0:00:11]} h6 {[%emt 0:01:53]} 20. Qe4 {[%emt 0:12:23]} b6 {[%emt 0:10:28]} 21. a3 {[%emt 0:04:05]} Qe5 {[%emt 0:05:17]} 22. Qxe5 {[%emt 0:02:42]} Nxe5 {[%emt 0:00:11]} 23. Kf1 {[%emt 0:02:20]} Kf8 {[%emt 0:02:54]} 24. Ke2 {[%emt 0:04:09]} Ke7 {[%emt 0:02:00]} 25. f3 {[%emt 0:04:07]} Bc6 {[%emt 0:02:39]} 26. Kf2 {[%emt 0:00:58]} g5 {[%emt 0:01:00]} 27. Ne2 {[%emt 0:00:55]} g4 {[%emt 0:01:56]} 28. f4 {[%emt 0:01:45]} Bxg2 {[%emt 0:00:40]} 29. fxe5 {[%emt 0:01:02]} Bf3 {[%emt 0:01:23]} 30. Nf4 {[%emt 0:00:11]} f6 {[%emt 0:03:29]} 31. exf6+ {[%emt 0:00:06]} Kxf6 {[%emt 0:00:09]} 32. c3 {[%emt 0:00:48]} Ke5 {[%emt 0:02:58]} 1/2-1/2

[Event "EYTCC U12 Girls 2019"]
[Site "Pardubice"]
[Date "2019.07.14"]
[Round "4.21"]
[White "Pohle, Saskia"]
[Black "Mikheeva, Galina"]
[Result "0-1"]
[ECO "C65"]
[WhiteElo "1719"]
[BlackElo "1792"]
[Annotator "NA"]
[PlyCount "62"]
[EventDate "2019.07.11"]
[EventType "swiss"]
[EventCountry "CZE"]
[SourceTitle "playchess.com"]
[Source "ChessBase"]
[SourceQuality "1"]
[WhiteTeam "Germany"]
[BlackTeam "Russia"]
[WhiteTeamCountry "GER"]
[BlackTeamCountry "RUS"]
[TimeControl "40/5400+30:1800+30"]

1. e4 {[%emt 0:00:00]} e5 {[%emt 0:00:00]} 2. Nf3 {[%emt 0:00:00]} Nc6 {[%emt 0:00:00]} 3. Bb5 {[%emt 0:00:00]} Nf6 {[%emt 0:00:21]} 4. d3 {[%emt 0:00:08]} Bc5 {[%emt 0:00:21]} 5. Bxc6 {[%emt 0:00:32]} dxc6 {[%emt 0:00:06]} 6. Nbd2 {[%emt 0:00:26]} Qe7 {[%emt 0:01:09]} 7. Nc4 {[%emt 0:03:12]} Nd7 {[%emt 0:01:15]} 8. Qe2 {[%emt 0:02:24]} f6 {[%emt 0:03:01]} 9. Bd2 {[%emt 0:00:32]} Nf8 {[%emt 0:01:23]} 10. h4 {[%emt 0:04:47]} Be6 {[%emt 0:07:01]} 11. Ne3 {[%emt 0:04:13]} h5 {[%emt 0:01:13]} 12. Bc3 {[%emt 0:19:23]} O-O-O {[%emt 0:02:04]} 13. Nd2 {[%emt 0:02:48]} Ng6 {[%emt 0:03:50]} 14. g3 {[%emt 0:01:18]} Bd4 {[%emt 0:07:47]} 15. Nb3 {[%emt 0:07:37]} c5 {[%emt 0:13:46]} 16. Qd2 {[%emt 0:04:21]} b6 {[%emt 0:07:02]} 17. O-O-O {[%emt 0:02:14]} Qd7 {[%emt 0:04:37]} 18. Kb1 {[%emt 0:03:49]} Qa4 {[%emt 0:05:06]} 19. f3 {[%emt 0:10:41]} Rd7 {[%emt 0:02:51]} 20. Ng2 {[%emt 0:03:24]} Ne7 {[%emt 0:02:17]} 21. f4 {[%emt 0:03:20]} Nc6 {[%emt 0:03:22]} 22. Nc1 {[%emt 0:04:17]} Rhd8 {[%emt 0:10:44]} 23. a3 {[%emt 0:04:01]} b5 {[%emt 0:04:54]} 24. Ne3 {[%emt 0:07:02]} Bxe3 {[%emt 0:06:23]} 25. Qxe3 {[%emt 0:00:14]} b4 {[%emt 0:00:26]} 26. axb4 {[%emt 0:00:36]} cxb4 {[%emt 0:00:04]} 27. Be1 {[%emt 0:00:44]} Nd4 {[%emt 0:01:04]} 28. Qf2 {[%emt 0:01:32]} b3 {[%emt 0:01:28]} 29. cxb3 {[%emt 0:03:00]} Nxb3 {[%emt 0:01:55]} 30. Bc3 {[%emt 0:01:38]} Nxc1 {[%emt 0:00:22]} 31. Kxc1 {[%emt 0:00:09]} Bb3 {[%emt 0:01:46]} 0-1

[Event "EYTCC U12 Girls 2019"]
[Site "Pardubice"]
[Date "2019.07.14"]
[Round "4.22"]
[White "Goriachkina, Oksana"]
[Black "Braeutigam, Katerina"]
[Result "1/2-1/2"]
[ECO "E20"]
[WhiteElo "1417"]
[BlackElo "1837"]
[Annotator "NA"]
[PlyCount "238"]
[EventDate "2019.07.11"]
[EventType "swiss"]
[EventCountry "CZE"]
[SourceTitle "playchess.com"]
[Source "ChessBase"]
[SourceQuality "1"]
[WhiteTeam "Russia"]
[BlackTeam "Germany"]
[WhiteTeamCountry "RUS"]
[BlackTeamCountry "GER"]
[TimeControl "40/5400+30:1800+30"]

1. d4 {[%emt 0:00:00]} Nf6 {[%emt 0:00:00]} 2. c4 {[%emt 0:00:17]} e6 {[%emt 0:00:00]} 3. Nc3 {[%emt 0:00:20]} Bb4 {[%emt 0:00:00]} 4. Bd2 {[%emt 0:08:56]} O-O {[%emt 0:00:15]} 5. Nf3 {[%emt 0:00:10]} c5 {[%emt 0:00:53]} 6. e3 {[%emt 0:00:50]} cxd4 {[%emt 0:01:09]} 7. Nxd4 {[%emt 0:00:32]} b6 {[%emt 0:06:35]} 8. Be2 {[%emt 0:02:04]} Bb7 {[%emt 0:00:29]} 9. O-O {[%emt 0:00:20]} Be7 {[%emt 0:03:37]} 10. Bf3 {[%emt 0:02:27]} d5 {[%emt 0:07:48]} 11. cxd5 {[%emt 0:00:17]} Nxd5 {[%emt 0:11:51]} 12. Nxd5 {[%emt 0:00:45]} Bxd5 {[%emt 0:02:02]} 13. Bxd5 {[%emt 0:00:17]} Qxd5 {[%emt 0:00:42]} 14. Qf3 {[%emt 0:02:00]} Qxf3 {[%emt 0:02:55]} 15. Nxf3 {[%emt 0:00:19]} Nd7 {[%emt 0:01:10]} 16. Bc3 {[%emt 0:01:01]} Nc5 {[%emt 0:02:14]} 17. Rfd1 {[%emt 0:01:22]} Rfc8 {[%emt 0:04:18]} 18. Rac1 {[%emt 0:04:15]} Ne4 {[%emt 0:07:07]} 19. Bd4 f6 {[%emt 0:01:59]} 20. Bc3 {[%emt 0:14:41]} Nxc3 {[%emt 0:01:16]} 21. Rxc3 {[%emt 0:00:07]} Rxc3 {[%emt 0:01:15]} 22. bxc3 {[%emt 0:00:05]} Kf7 {[%emt 0:01:16]} 23. Nd4 {[%emt 0:01:37]} Rd8 {[%emt 0:13:38]} 24. Rc1 {[%emt 0:02:01]} Rc8 {[%emt 0:07:57]} 25. Kf1 {[%emt 0:02:00]} e5 {[%emt 0:02:23]} 26. Ne2 {[%emt 0:00:57]} Ke6 {[%emt 0:03:47]} 27. Ke1 {[%emt 0:03:08]} Rc7 {[%emt 0:03:06]} 28. Kd2 {[%emt 0:04:04]} Kd5 {[%emt 0:00:55]} 29. Kd3 {[%emt 0:02:31]} Rd7 {[%emt 0:04:06]} 30. c4+ {[%emt 0:01:22]} Kc5+ {[%emt 0:00:45]} 31. Kc3 {[%emt 0:00:07]} f5 {[%emt 0:01:19]} 32. Ng3 {[%emt 0:00:38]} g6 {[%emt 0:08:01]} 33. e4 {[%emt 0:02:51]} f4 {[%emt 0:00:08]} 34. Ne2 {[%emt 0:00:12]} g5 {[%emt 0:00:27]} 35. f3 {[%emt 0:00:15]} h5 {[%emt 0:00:05]} 36. h3 {[%emt 0:00:18]} Bf6 {[%emt 0:00:41]} 37. g4 {[%emt 0:06:12]} fxg3 {[%emt 0:01:05]} 38. Nxg3 {[%emt 0:00:09]} h4 {[%emt 0:00:37]} 39. Nf5 {[%emt 0:00:33]} Be7 {[%emt 0:00:23]} 40. Ne3 {[%emt 0:00:54]} Rd4 {[%emt 0:00:39]} 41. Rb1 {[%emt 0:31:51]} a6 {[%emt 0:30:48]} 42. Rg1 {[%emt 0:02:12]} Bd8 {[%emt 0:00:00]} 43. Rg2 {[%emt 0:00:00]} Be7 {[%emt 0:00:00]} 44. Rg1 {[%emt 0:00:00]} Bd8 {[%emt 0:00:00]} 45. Rg2 {[%emt 0:00:00]} Rd7 {[%emt 0:00:00]} 46. Rg1 {[%emt 0:00:00]} Bf6 {[%emt 0:00:00]} 47. Ng4 {[%emt 0:00:00]} Rf7 {[%emt 0:00:00]} 48. Ne3 {[%emt 0:00:00]} Rd7 {[%emt 0:00:00]} 49. Nd5 {[%emt 0:00:00]} Rd6 {[%emt 0:00:00]} 50. Rg2 {[%emt 0:00:00]} Bd8 {[%emt 0:00:00]} 51. Rg1 {[%emt 0:00:00]} Kc6 {[%emt 0:00:00]} 52. Nb4+ {[%emt 0:00:00]} Kb7 {[%emt 0:00:24]} 53. Nd5 {[%emt 0:00:00]} Rc6 {[%emt 0:00:57]} 54. Kb3 {[%emt 0:00:00]} Bf6 {[%emt 0:03:06]} 55. Rg2 {[%emt 0:00:00]} Bd8 {[%emt 0:00:29]} 56. Rg1 {[%emt 0:00:00]} Rd6 {[%emt 0:00:31]} 57. Rg2 {[%emt 0:00:00]} Rd7 {[%emt 0:00:11]} 58. Rf2 {[%emt 0:00:00]} Rf7 {[%emt 0:00:34]} 59. Rf1 {[%emt 0:00:00]} Be7 {[%emt 0:00:46]} 60. Kc2 {[%emt 0:00:00]} Bc5 {[%emt 0:00:33]} 61. Kd2 {[%emt 0:00:00]} Bd4 {[%emt 0:01:20]} 62. Ke2 {[%emt 0:00:00]} Kc6 {[%emt 0:00:17]} 63. Rb1 {[%emt 0:08:42]} Rg7 {[%emt 0:01:31]} 64. Ne3 {[%emt 0:03:52]} Bxe3 {[%emt 0:00:06]} 65. Kxe3 {[%emt 0:00:23]} Kc5 {[%emt 0:00:08]} 66. Rc1 {[%emt 0:00:59]} Rd7 {[%emt 0:00:23]} 67. Rg1 {[%emt 0:00:13]} Rg7 {[%emt 0:00:40]} 68. Rc1 {[%emt 0:00:07]} Kd6 {[%emt 0:00:23]} 69. Rb1 {[%emt 0:00:19]} Kc5 {[%emt 0:00:08]} 70. Rc1 {[%emt 0:00:04]} Rg6 {[%emt 0:00:10]} 71. Rc2 {[%emt 0:00:27]} Kb4 {[%emt 0:00:11]} 72. Rc1 {[%emt 0:02:06]} Rc6 {[%emt 0:00:58]} 73. Rg1 {[%emt 0:00:55]} Rxc4 {[%emt 0:00:43]} 74. Rxg5 {[%emt 0:00:23]} Rc5 {[%emt 0:00:55]} 75. Rh5 {[%emt 0:02:39]} Ka3 {[%emt 0:00:26]} 76. Rxh4 {[%emt 0:00:33]} Kxa2 {[%emt 0:00:08]} 77. Rh6 {[%emt 0:00:51]} Rb5 {[%emt 0:01:11]} 78. h4 {[%emt 0:01:26]} a5 {[%emt 0:00:32]} 79. Rg6 {[%emt 0:00:30]} Rb2 {[%emt 0:00:39]} 80. h5 {[%emt 0:00:19]} b5 {[%emt 0:00:18]} 81. h6 {[%emt 0:01:24]} Rh2 {[%emt 0:00:13]} 82. Ra6 {[%emt 0:05:29]} a4 {[%emt 0:00:20]} 83. Ra5 {[%emt 0:00:01]} Rxh6 {[%emt 0:00:26]} 84. Rxb5 {[%emt 0:00:12]} Rh5 {[%emt 0:00:25]} 85. Kd3 {[%emt 0:00:32]} a3 {[%emt 0:00:24]} 86. Kc2 {[%emt 0:09:50]} Rh2+ {[%emt 0:01:18]} 87. Kc1 {[%emt 0:00:11]} Rh3 {[%emt 0:00:32]} 88. Rxe5 {[%emt 0:03:28]} Rxf3 {[%emt 0:00:08]} 89. Rb5 {[%emt 0:00:47]} Rc3+ {[%emt 0:00:42]} 90. Kd2 {[%emt 0:00:27]} Rb3 {[%emt 0:00:12]} 91. Rc5 {[%emt 0:01:02]} Rb2+ {[%emt 0:00:58]} 92. Kc1 {[%emt 0:00:31]} Kb3 {[%emt 0:00:45]} 93. Rb5+ {[%emt 0:00:25]} Ka2 {[%emt 0:00:20]} 94. Rc5 {[%emt 0:01:52]} Rb4 {[%emt 0:00:44]} 95. Rc2+ {[%emt 0:01:24]} Kb3 {[%emt 0:00:15]} 96. e5 {[%emt 0:06:56]} a2 {[%emt 0:00:56]} 97. Rb2+ {[%emt 0:00:07]} Ka3 {[%emt 0:00:06]} 98. Rxb4 {[%emt 0:00:08]} a1=Q+ {[%emt 0:00:12]} 99. Rb1 {[%emt 0:00:05]} Qxe5 {[%emt 0:00:46]} 100. Kd2 {[%emt 0:00:34]} Qd4+ {[%emt 0:00:23]} 101. Kc2 {[%emt 0:01:11]} Ka2 {[%emt 0:00:22]} 102. Rd1 {[%emt 0:00:09]} Qa4+ {[%emt 0:01:09]} 103. Kd2 {[%emt 0:00:16]} Kb2 {[%emt 0:00:07]} 104. Rf1 {[%emt 0:01:19]} Qd4+ {[%emt 0:00:23]} 105. Ke2 {[%emt 0:00:16]} Kc2 {[%emt 0:00:31]} 106. Rf2 {[%emt 0:00:20]} Qe4+ {[%emt 0:00:38]} 107. Kf1+ {[%emt 0:00:26]} Kd3 {[%emt 0:00:26]} 108. Kg1 {[%emt 0:00:53]} Ke3 {[%emt 0:00:48]} 109. Rf1 {[%emt 0:02:23]} Qg4+ {[%emt 0:00:29]} 110. Kh2 {[%emt 0:00:32]} Ke2 {[%emt 0:00:42]} 111. Rg1 {[%emt 0:00:41]} Qh4+ {[%emt 0:00:47]} 112. Kg2 {[%emt 0:00:06]} Qf2+ {[%emt 0:00:16]} 113. Kh1 {[%emt 0:00:24]} Qf3+ {[%emt 0:00:36]} 114. Kh2 {[%emt 0:00:14]} Kd2 {[%emt 0:00:19]} 115. Rg2+ {[%emt 0:00:30]} Ke1 {[%emt 0:00:39]} 116. Rg1+ {[%emt 0:00:13]} Ke2 {[%emt 0:00:27]} 117. Rg2+ {[%emt 0:00:05]} Kf1 {[%emt 0:00:32]} 118. Rg1+ {[%emt 0:00:17]} Kf2 {[%emt 0:00:23]} 119. Rf1+ {[%emt 0:00:14]} Ke2 {[%emt 0:00:16]} 1/2-1/2

[Event "EYTCC U12 Girls 2019"]
[Site "Pardubice"]
[Date "2019.07.14"]
[Round "4.23"]
[White "Ivanova, Dilyana"]
[Black "Siekanska, Maria"]
[Result "0-1"]
[ECO "B80"]
[WhiteElo "1734"]
[BlackElo "1561"]
[Annotator "NA"]
[PlyCount "128"]
[EventDate "2019.07.11"]
[EventType "swiss"]
[EventCountry "CZE"]
[SourceTitle "playchess.com"]
[Source "ChessBase"]
[SourceQuality "1"]
[WhiteTeam "Bulgaria"]
[BlackTeam "Poland"]
[WhiteTeamCountry "BUL"]
[BlackTeamCountry "POL"]
[TimeControl "40/5400+30:1800+30"]

1. e4 {[%emt 0:00:00]} c5 {[%emt 0:00:00]} 2. Nf3 {[%emt 0:00:00]} d6 {[%emt 0:00:00]} 3. d4 {[%emt 0:00:00]} cxd4 {[%emt 0:00:00]} 4. Nxd4 {[%emt 0:00:00]} Nf6 {[%emt 0:00:00]} 5. Nc3 {[%emt 0:00:00]} e6 {[%emt 0:00:00]} 6. Be3 {[%emt 0:00:41]} Be7 {[%emt 0:00:23]} 7. f3 {[%emt 0:00:53]} O-O {[%emt 0:00:21]} 8. Qd2 {[%emt 0:00:28]} Nc6 {[%emt 0:00:34]} 9. O-O-O {[%emt 0:00:57]} a6 {[%emt 0:01:48]} 10. Kb1 {[%emt 0:03:08]} Nxd4 {[%emt 0:01:11]} 11. Bxd4 {[%emt 0:01:25]} b5 {[%emt 0:01:07]} 12. g4 {[%emt 0:02:08]} Bb7 {[%emt 0:03:54]} 13. h4 {[%emt 0:08:03]} Rc8 {[%emt 0:02:51]} 14. h5 {[%emt 0:05:11]} Nd7 {[%emt 0:03:59]} 15. Rg1 {[%emt 0:19:56]} b4 {[%emt 0:02:44]} 16. Ne2 {[%emt 0:01:37]} Ne5 {[%emt 0:09:24]} 17. Bg2 {[%emt 0:16:14]} Qc7 {[%emt 0:05:59]} 18. Rc1 {[%emt 0:05:41]} Rfd8 {[%emt 0:04:59]} 19. Qxb4 {[%emt 0:04:19]} Nc6 {[%emt 0:04:43]} 20. Qb6 {[%emt 0:10:24]} Qd7 {[%emt 0:01:10]} 21. c3 {[%emt 0:02:45]} Rb8 {[%emt 0:00:50]} 22. Qb3 {[%emt 0:00:50]} Nxd4 {[%emt 0:00:44]} 23. Nxd4 {[%emt 0:02:21]} Bxe4+ {[%emt 0:00:26]} 24. fxe4 {[%emt 0:00:09]} Rxb3 {[%emt 0:00:06]} 25. Nxb3 {[%emt 0:00:22]} Rb8 {[%emt 0:05:58]} 26. Rgd1 {[%emt 0:01:20]} Qc7 {[%emt 0:02:31]} 27. Rd3 {[%emt 0:01:06]} a5 {[%emt 0:01:44]} 28. Rd4 {[%emt 0:04:15]} Bf6 {[%emt 0:02:14]} 29. Ra4 {[%emt 0:00:43]} Bg5 {[%emt 0:08:51]} 30. Rd1 {[%emt 0:01:03]} Qb6 {[%emt 0:01:59]} 31. Rxa5 {[%emt 0:02:13]} Qf2 {[%emt 0:01:17]} 32. Rxg5 {[%emt 0:03:52]} Qxg2 {[%emt 0:00:14]} 33. Re1 {[%emt 0:01:01]} Qf2 {[%emt 0:00:49]} 34. Rd1 {[%emt 0:00:42]} Qf4 {[%emt 0:00:56]} 35. Ra5 {[%emt 0:00:08]} Qxe4+ {[%emt 0:00:24]} 36. Kc1 {[%emt 0:00:45]} Qxg4 {[%emt 0:00:35]} 37. Rxd6 {[%emt 0:00:42]} Qf4+ {[%emt 0:01:05]} 38. Rd2 {[%emt 0:00:03]} Rd8 {[%emt 0:00:46]} 39. Ra4 {[%emt 0:00:38]} Qf1+ {[%emt 0:01:48]} 40. Kc2 {[%emt 0:00:06]} Rxd2+ {[%emt 0:00:10]} 41. Nxd2 {[%emt 0:30:28]} Qf5+ {[%emt 0:30:27]} 42. Kc1 {[%emt 0:01:06]} h6 {[%emt 0:00:34]} 43. Ra8+ {[%emt 0:02:47]} Kh7 {[%emt 0:00:34]} 44. a4 {[%emt 0:00:27]} Qd5 {[%emt 0:03:32]} 45. Rb8 {[%emt 0:00:00]} e5 {[%emt 0:00:00]} 46. Rb5 {[%emt 0:00:00]} Qe6 {[%emt 0:00:00]} 47. a5 {[%emt 0:00:00]} e4 {[%emt 0:00:00]} 48. Rb6 {[%emt 0:00:00]} Qg4 {[%emt 0:00:00]} 49. Rb4 {[%emt 0:00:00]} Qg1+ {[%emt 0:00:00]} 50. Kc2 {[%emt 0:00:00]} e3 {[%emt 0:00:00]} 51. a6 {[%emt 0:00:00]} exd2 {[%emt 0:00:00]} 52. Kxd2 {[%emt 0:00:00]} Qf2+ {[%emt 0:00:00]} 53. Kc1 {[%emt 0:00:00]} Qf1+ {[%emt 0:00:00]} 54. Kc2 {[%emt 0:00:00]} Qxa6 {[%emt 0:00:00]} 55. c4 {[%emt 0:00:00]} f5 {[%emt 0:00:00]} 56. Kc3 {[%emt 0:00:00]} f4 {[%emt 0:00:00]} 57. c5 {[%emt 0:00:00]} f3 {[%emt 0:00:00]} 58. Rf4 {[%emt 0:00:00]} Qe2 {[%emt 0:00:00]} 59. Rf5 {[%emt 0:00:00]} Qe3+ {[%emt 0:00:00]} 60. Kc4 {[%emt 0:00:00]} Qe4+ {[%emt 0:00:00]} 61. Kb5 {[%emt 0:00:00]} Qxf5 {[%emt 0:00:00]} 62. Kb6 {[%emt 0:00:00]} f2 {[%emt 0:00:00]} 63. c6 {[%emt 0:00:00]} f1=Q {[%emt 0:00:00]} 64. c7 {[%emt 0:00:00]} Q5b5+ {[%emt 0:00:00]} 0-1